[Event "RUS-chT Premier League Women 2018"]
[Site "Sochi"]
[Date "2018.05.03"]
[Round "3"]
[White "Dordzhieva, Dinara"]
[Black "Bivol, Alina"]
[Result "0-1"]
[ECO "E84"]
[WhiteElo "2303"]
[BlackElo "2327"]
[Annotator "NA"]
[PlyCount "120"]
[EventDate "2018.??.??"]
[EventCountry "RUS"]
[SourceTitle "playchess.com"]
[Source "ChessBase"]
[SourceQuality "1"]
[TimeControl "40/5400+30:1800+30"]

1. d4 {[%emt 0:00:00]} Nf6 {[%emt 0:00:17]} 2. c4 {[%emt 0:00:00]} g6 {[%emt 0:00:31]} 3. Nc3 {[%emt 0:00:00]} Bg7 {[%emt 0:00:24]} 4. e4 {[%emt 0:00:00]} d6 {[%emt 0:00:21]} 5. f3 {[%emt 0:00:00]} O-O {[%emt 0:01:06]} 6. Be3 {[%emt 0:00:05]} Nc6 {[%emt 0:00:53]} 7. Nge2 {[%emt 0:00:16]} a6 {[%emt 0:00:18]} 8. Qd2 {[%emt 0:00:10]} Rb8 {[%emt 0:00:42]} 9. Rc1 {[%emt 0:00:10]} Bd7 {[%emt 0:03:55]} 10. Nd1 {[%emt 0:00:14] E84: King's Indian: Sämisch Panno: 7 Nge2 a6 8 Qd2 Rb8} (10. h4 h5 11. Nd1 e5 12. d5 Ne7 13. Nf2 Nh7 14. c5 f5 15. Qb4 fxe4 16. fxe4 Rf6 17. cxd6 cxd6 {1-0 (37) Kovalenko,I (2667)-Smirin,I (2676) Poikovsky 2016}) 10... Re8 {[%emt 0:03:41]} 11. Nf2 {[%emt 0:00:52]} e6 {[%emt 0:02:58]} 12. g4 {[%emt 0:00:26]} b5 {[%emt 0:07:24]} 13. cxb5 {[%emt 0:00:19]} axb5 {[%emt 0:01:47]} 14. Bg2 {[%emt 0:00:14]} Qc8 $146 {[%emt 0:04:55]} ({Predecessor:} 14... e5 15. d5 Ne7 16. O-O c5 17. dxc6 Bxc6 {1-0 (86) Alexa,J (2343)-Verst,P (2300) ICCF email 2015}) 15. O-O {[%emt 0:02:50]} Qa6 {[%emt 0:04:12]} 16. b3 {[%emt 0:00:37]} Rec8 {[%emt 0:05:14]} 17. Rc2 {[%emt 0:02:38]} Nd8 {[%emt 0:07:36]} 18. Rfc1 {[%emt 0:03:05]} c6 {[%emt 0:00:11]} 19. Nd3 {[%emt 0:02:44]} Be8 {[%emt 0:06:46]} 20. Bf4 {[%emt 0:19:22]} Nb7 {[%emt 0:11:26]} 21. Nb4 {[%emt 0:01:19]} Qb6 {[%emt 0:00:36]} 22. Be3 {[%emt 0:00:32]} c5 {[%emt 0:06:28]} 23. Nd3 {[%emt 0:02:09]} Rd8 {[%emt 0:03:11]} 24. dxc5 {[%emt 0:25:40]} dxc5 {[%emt 0:01:01]} 25. b4 {[%emt 0:00:02]} Nd7 {[%emt 0:16:23]} 26. bxc5 {[%emt 0:04:48]} Ndxc5 {[%emt 0:00:29]} 27. Rxc5 {[%emt 0:00:15]} Nxc5 {[%emt 0:00:10]} 28. Bxc5 {[%emt 0:00:58]} Qa6 {[%emt 0:00:57]} 29. Qe3 {[%emt 0:14:21]} Qxa2 {[%emt 0:01:03]} 30. e5 {[%emt 0:00:30]} Qa4 {[%emt 0:04:07]} 31. Bd6 {[%emt 0:03:32]} Rbc8 {[%emt 0:00:21]} 32. Nc5 {[%emt 0:00:34]} Qa7 {[%emt 0:00:40]} 33. Kh1 {[%emt 0:02:21]} b4 {[%emt 0:03:22]} 34. f4 {[%emt 0:10:58]} Bc6 {[%emt 0:01:38]} 35. Bxc6 {[%emt 0:02:17]} Rxc6 {[%emt 0:00:01]} 36. Qe4 {[%emt 0:01:21]} Qa8 {[%emt 0:00:51]} 37. Rb1 {[%emt 0:00:26]} Bf8 {[%emt 0:01:05]} 38. Bxf8 {[%emt 0:02:23]} Kxf8 {[%emt 0:00:54]} 39. Nd4 {[%emt 0:00:30]} Rxc5 {[%emt 0:00:21]} 40. Qxa8 {[%emt 0:00:00]} Rxa8 41. Rxb4 {[%emt 0:00:21]} Ra1+ {[%emt 0:01:33]} 42. Kg2 {[%emt 0:00:03]} Ra2+ {[%emt 0:00:15]} 43. Kf3 {[%emt 0:00:34]} Rc3+ {[%emt 0:09:08]} 44. Ke4 {[%emt 0:00:11]} Rc8 {[%emt 0:08:08]} 45. h3 {[%emt 0:07:48]} Rca8 $19 {[%emt 0:00:11]} 46. Rb6 {[%emt 0:04:11]} R2a4 {[%emt 0:00:39]} 47. Rd6 {[%emt 0:03:32]} Ke8 {[%emt 0:02:32]} 48. f5 {[%emt 0:00:50]} R8a6 {[%emt 0:02:36]} 49. fxe6 {[%emt 0:01:34]} fxe6 {[%emt 0:00:11]} 50. Rxa6 {[%emt 0:00:12]} Rxa6 {[%emt 0:00:01]} 51. Nf3 {[%emt 0:00:05]} Ra4+ {[%emt 0:00:06]} 52. Ke3 {[%emt 0:00:04]} Kd7 {[%emt 0:00:46]} 53. Kf2 {[%emt 0:02:51]} Ra3 {[%emt 0:01:06]} 54. Kg2 {[%emt 0:00:12]} Re3 {[%emt 0:04:00]} 55. Kf2 {[%emt 0:00:22]} Re4 {[%emt 0:01:20]} 56. Kg3 {[%emt 0:00:01]} h6 {[%emt 0:01:15]} 57. Nh4 {[%emt 0:00:52]} g5 {[%emt 0:00:14]} 58. Ng6 {[%emt 0:00:04]} Ke8 {[%emt 0:00:56]} 59. h4 {[%emt 0:00:02]} Ra4 {[%emt 0:01:53]} 60. h5 {[%emt 0:00:33]} Ra8 {[%emt 0:00:19]} 0-1

[Event "RUS-chT Premier League Women 2018"]
[Site "Sochi"]
[Date "2018.05.03"]
[Round "3"]
[White "Styazhkina, Anna"]
[Black "Markelova, Lubov"]
[Result "1-0"]
[ECO "C07"]
[WhiteElo "2299"]
[BlackElo "2144"]
[Annotator "NA"]
[PlyCount "145"]
[EventDate "2018.??.??"]
[EventCountry "RUS"]
[SourceTitle "playchess.com"]
[Source "ChessBase"]
[SourceQuality "1"]
[TimeControl "40/5400+30:1800+30"]

1. e4 {[%emt 0:00:00]} e6 {[%emt 0:00:04]} 2. d4 {[%emt 0:00:00]} d5 {[%emt 0:00:04]} 3. Nd2 {[%emt 0:00:00]} c5 {[%emt 0:00:23]} 4. Ngf3 {[%emt 0:00:09]} cxd4 {[%emt 0:00:58]} 5. Nxd4 {[%emt 0:00:09]} Nc6 {[%emt 0:03:53]} 6. Bb5 {[%emt 0:00:30]} Bd7 {[%emt 0:01:34]} 7. Nxc6 {[%emt 0:00:11]} Bxc6 {[%emt 0:00:18]} 8. Bxc6+ {[%emt 0:00:12]} bxc6 {[%emt 0:00:04]} 9. c4 {[%emt 0:00:19]} Nf6 {[%emt 0:05:56]} 10. Qa4 {[%emt 0:03:11] C07: French Tarrasch: 3...c5, 4 Ngf3 and 4 exd5 Qxd5} Qc7 {[%emt 0:05:28]} (10... Qd7 11. e5 Ng4 12. Nf3 f6 13. exf6 gxf6 14. cxd5 exd5 15. O-O Bd6 16. Bf4 c5 17. Rfe1+ Be7 18. Rxe7+ Kxe7 {1-0 (46) Anand,V (2803)-Bartel,M (2622) Berlin 2015}) 11. exd5 {[%emt 0:04:04]} exd5 {[%emt 0:01:32]} 12. O-O {[%emt 0:00:46]} Be7 {[%emt 0:03:32]} 13. b3 {[%emt 0:04:19]} O-O {[%emt 0:04:04]} 14. Bb2 {[%emt 0:01:50]} Rfd8 {[%emt 0:13:43]} 15. Nf3 {[%emt 0:01:23]} Ne4 {[%emt 0:10:52]} 16. Rac1 $146 {[%emt 0:16:53]} ({Predecessor:} 16. cxd5 cxd5 17. Rac1 Qb7 {½-½ (41) Herrmann,H (2294)-Weber,K (2358) GER email 2008}) 16... Nc5 {[%emt 0:05:05]} 17. Qb4 {[%emt 0:00:27]} Nd3 {[%emt 0:02:00]} 18. Qc3 {[%emt 0:00:30]} Nxb2 {[%emt 0:01:31]} 19. Qxb2 Bf6 {[%emt 0:01:41]} 20. Qc2 {[%emt 0:07:44]} Qa5 {[%emt 0:05:41]} 21. cxd5 {[%emt 0:16:03]} cxd5 {[%emt 0:00:24]} 22. Rfd1 {[%emt 0:01:33]} Qb4 {[%emt 0:05:31]} 23. Qc6 {[%emt 0:09:46]} Qe4 {[%emt 0:07:16]} 24. Kf1 {[%emt 0:11:02]} Qe6 {[%emt 0:09:34]} 25. Qb7 {[%emt 0:04:53]} a5 {[%emt 0:02:49]} 26. Rc6 {[%emt 0:03:40]} Qd7 {[%emt 0:04:37]} 27. Rc7 {[%emt 0:05:02]} Qe6 {[%emt 0:00:14]} 28. Re1 {[%emt 0:03:00]} Qa6+ {[%emt 0:01:44]} 29. Qxa6 {[%emt 0:00:32]} Rxa6 {[%emt 0:00:04]} 30. Rd7 {[%emt 0:02:22]} Raa8 {[%emt 0:01:08]} 31. Rxd8+ {[%emt 0:01:15]} Rxd8 {[%emt 0:00:04]} 32. Rc1 {[%emt 0:01:05]} d4 {[%emt 0:02:17]} 33. Ke2 {[%emt 0:00:56]} d3+ {[%emt 0:01:30]} 34. Kd2 {[%emt 0:00:26]} Bb2 {[%emt 0:01:11]} 35. Rc4 {[%emt 0:00:23]} Ba3 {[%emt 0:00:29]} 36. Rd4 {[%emt 0:00:23]} Bb4+ {[%emt 0:00:24]} 37. Kxd3 {[%emt 0:00:19]} Rc8 {[%emt 0:00:39]} 38. Rc4 {[%emt 0:02:11]} Rd8+ {[%emt 0:00:14]} 39. Nd4 {[%emt 0:01:01]} g6 {[%emt 0:00:43]} 40. Kc2 {[%emt 0:00:00]} Re8 {[%emt 0:00:33]} 41. Kd3 {[%emt 0:03:08]} Rd8 {[%emt 0:06:22]} 42. Ke2 {[%emt 0:03:01]} Kg7 {[%emt 0:11:04]} 43. Nc2 {[%emt 0:01:33]} Be7 {[%emt 0:01:48]} 44. Ne3 {[%emt 0:00:57]} Bb4 {[%emt 0:00:57]} 45. Rc2 {[%emt 0:00:50]} h5 {[%emt 0:06:02]} 46. Nc4 {[%emt 0:00:25]} Rd5 {[%emt 0:00:22]} 47. a3 {[%emt 0:02:54]} Be7 {[%emt 0:01:00]} 48. Rd2 {[%emt 0:01:10]} Rb5 {[%emt 0:01:23]} 49. Rd3 {[%emt 0:00:34]} Rc5 {[%emt 0:00:57]} 50. Rd7 $16 {[%emt 0:03:25]} Kf6 {[%emt 0:04:21]} 51. a4 {[%emt 0:02:39]} Ke6 {[%emt 0:01:10]} 52. Ra7 {[%emt 0:00:25]} Bd8 {[%emt 0:00:35]} 53. Ra6+ {[%emt 0:02:35]} Kd7 {[%emt 0:00:30]} 54. Ke3 {[%emt 0:00:55]} Rg5 {[%emt 0:00:35]} 55. g3 {[%emt 0:00:20]} Rf5 {[%emt 0:00:31]} 56. f4 {[%emt 0:01:20]} Bc7 {[%emt 0:00:30]} 57. Kd4 {[%emt 0:05:18]} h4 {[%emt 0:00:31]} 58. Ne3 {[%emt 0:00:17]} Rh5 {[%emt 0:00:26]} 59. g4 {[%emt 0:01:20]} Rh8 {[%emt 0:00:17]} 60. Nd5 {[%emt 0:00:06]} Bd8 {[%emt 0:00:48]} 61. Ra7+ {[%emt 0:04:28]} Ke6 {[%emt 0:00:29]} 62. h3 {[%emt 0:01:12]} Rf8 {[%emt 0:00:31]} 63. Rb7 {[%emt 0:01:15]} Rh8 {[%emt 0:00:28]} 64. Ra7 {[%emt 0:01:14]} Rf8 {[%emt 0:00:05]} 65. Kc5 {[%emt 0:00:25]} Rh8 {[%emt 0:00:59]} 66. Ra6+ {[%emt 0:01:33]} Kd7 {[%emt 0:00:11]} 67. Ra7+ {[%emt 0:00:58]} Ke6 {[%emt 0:00:05]} 68. Kc6 {[%emt 0:00:35]} Rf8 {[%emt 0:00:44]} 69. Ra8 {[%emt 0:00:24]} Rh8 {[%emt 0:00:58]} 70. Ne3 {[%emt 0:00:33]} Ke7 {[%emt 0:00:31]} 71. Nc4 {[%emt 0:00:20]} Re8 {[%emt 0:00:26]} 72. Nd6 {[%emt 0:00:16]} Rf8 {[%emt 0:00:32]} 73. Nb7 {[%emt 0:00:08]} 1-0

[Event "RUS-chT Premier League Women 2018"]
[Site "Sochi"]
[Date "2018.05.03"]
[Round "3"]
[White "Lysenko, Margarita"]
[Black "Drozdova, Dina"]
[Result "1/2-1/2"]
[ECO "E14"]
[WhiteElo "2220"]
[BlackElo "2186"]
[Annotator "NA"]
[PlyCount "91"]
[EventDate "2018.??.??"]
[EventCountry "RUS"]
[SourceTitle "playchess.com"]
[Source "ChessBase"]
[SourceQuality "1"]
[TimeControl "40/5400+30:1800+30"]

1. d4 {[%emt 0:00:00]} Nf6 {[%emt 0:00:16]} 2. Nf3 {[%emt 0:00:07]} e6 {[%emt 0:00:41]} 3. e3 {[%emt 0:00:27]} b6 {[%emt 0:03:53]} 4. Bd3 {[%emt 0:02:16]} Bb7 {[%emt 0:00:34]} 5. O-O {[%emt 0:01:02]} c5 {[%emt 0:00:42]} 6. c4 {[%emt 0:00:58]} Be7 {[%emt 0:01:11]} 7. Nc3 {[%emt 0:02:54]} cxd4 {[%emt 0:00:17]} 8. exd4 {[%emt 0:00:36]} d6 {[%emt 0:00:24]} 9. Re1 {[%emt 0:17:19]} O-O {[%emt 0:01:45]} 10. Ng5 {[%emt 0:17:59]} h6 {[%emt 0:08:03]} 11. Nh3 {[%emt 0:07:27]} Nbd7 $14 {[%emt 0:03:50]} 12. Nf4 {[%emt 0:19:53]} Re8 {[%emt 0:06:51]} 13. d5 {[%emt 0:08:38]} e5 {[%emt 0:03:17]} 14. Nh5 {[%emt 0:01:17]} Nxh5 {[%emt 0:01:25]} 15. Qxh5 {[%emt 0:00:08]} Nf6 {[%emt 0:01:59]} 16. Qf3 {[%emt 0:01:10]} Bf8 {[%emt 0:03:34]} 17. Bd2 {[%emt 0:07:35]} g6 {[%emt 0:06:13]} 18. g4 {[%emt 0:02:26]} Bc8 {[%emt 0:11:07]} 19. h3 {[%emt 0:01:18]} Bg7 {[%emt 0:12:08]} 20. Qg3 {[%emt 0:01:12]} Ba6 {[%emt 0:08:40]} 21. Rac1 {[%emt 0:03:41]} Rc8 {[%emt 0:01:17]} 22. b3 {[%emt 0:00:22]} Nd7 {[%emt 0:02:05]} 23. Ne4 {[%emt 0:01:26]} Nc5 {[%emt 0:00:38]} 24. Nxc5 {[%emt 0:00:08]} bxc5 {[%emt 0:01:05]} 25. h4 {[%emt 0:00:39]} Rc7 {[%emt 0:05:31]} 26. Ba5 {[%emt 0:01:02]} Bc8 {[%emt 0:01:21]} 27. Kh1 {[%emt 0:00:54]} Rf8 {[%emt 0:00:49]} 28. Rg1 {[%emt 0:00:21]} Qe7 {[%emt 0:00:47]} 29. Bxc7 {[%emt 0:00:06]} Qxc7 {[%emt 0:00:08]} 30. Rg2 {[%emt 0:00:28]} Qa5 {[%emt 0:00:19]} 31. Bb1 {[%emt 0:00:11]} Qd8 {[%emt 0:02:51]} 32. Rcg1 {[%emt 0:00:44]} a5 {[%emt 0:00:33]} 33. Rh2 {[%emt 0:00:45]} Re8 {[%emt 0:00:41]} 34. Qe3 {[%emt 0:00:37]} Bd7 {[%emt 0:00:38]} 35. h5 {[%emt 0:00:40]} g5 {[%emt 0:01:06]} 36. Be4 {[%emt 0:00:29]} Qc8 {[%emt 0:00:19]} 37. Qf3 {[%emt 0:00:34]} Rf8 {[%emt 0:00:50]} 38. Rhg2 {[%emt 0:00:24]} f5 {[%emt 0:00:41]} 39. gxf5 {[%emt 0:00:23]} Bxf5 {[%emt 0:00:07]} 40. Bxf5 {[%emt 0:00:00]} Rxf5 {[%emt 0:00:06]} 41. Qg4 {[%emt 0:02:34]} Qf8 {[%emt 0:01:04]} 42. Rf1 {[%emt 0:01:58]} Qf7 {[%emt 0:01:24]} 43. Kg1 {[%emt 0:01:37]} Bf8 {[%emt 0:03:58]} 44. Rh2 {[%emt 0:07:10]} Kg7 {[%emt 0:01:43]} 45. Re1 {[%emt 0:03:02]} Kh7 {[%emt 0:03:38]} 46. Re3 {[%emt 0:02:42]} 1/2-1/2

[Event "RUS-chT Premier League Women 2018"]
[Site "Sochi"]
[Date "2018.05.03"]
[Round "3"]
[White "Nebolsina, Vera"]
[Black "Ovod, Evgenija"]
[Result "0-1"]
[ECO "B22"]
[WhiteElo "2218"]
[BlackElo "2371"]
[Annotator "NA"]
[PlyCount "80"]
[EventDate "2018.??.??"]
[EventCountry "RUS"]
[SourceTitle "playchess.com"]
[Source "ChessBase"]
[SourceQuality "1"]
[TimeControl "40/5400+30:1800+30"]

1. e4 {[%emt 0:00:00]} c5 {[%emt 0:00:05]} 2. c3 {[%emt 0:00:00]} d5 {[%emt 0:00:07]} 3. exd5 {[%emt 0:00:07]} Qxd5 {[%emt 0:00:06]} 4. d4 {[%emt 0:00:09]} Nf6 {[%emt 0:00:06]} 5. Nf3 {[%emt 0:00:13]} e6 {[%emt 0:00:09]} 6. c4 {[%emt 0:00:15]} Qd7 {[%emt 0:13:29]} 7. Nc3 {[%emt 0:14:06]} cxd4 {[%emt 0:01:27]} 8. Nxd4 {[%emt 0:01:35]} Bc5 {[%emt 0:00:30]} 9. Be3 {[%emt 0:01:08]} Nc6 {[%emt 0:00:21]} 10. Ndb5 {[%emt 0:17:11]} Bxe3 {[%emt 0:00:27]} 11. fxe3 {[%emt 0:01:49]} O-O {[%emt 0:10:53]} 12. Qf3 {[%emt 0:10:04]} Qe7 {[%emt 0:07:23]} 13. Be2 $15 {[%emt 0:05:42]} Rd8 {[%emt 0:14:24]} 14. O-O {[%emt 0:07:37]} a6 {[%emt 0:11:01]} 15. Na3 {[%emt 0:00:10]} Rd2 {[%emt 0:00:24]} 16. c5 {[%emt 0:08:36]} Rxb2 {[%emt 0:04:50]} 17. Qg3 {[%emt 0:12:02]} Nd5 {[%emt 0:13:34]} 18. Nab1 {[%emt 0:06:38]} Qxc5 {[%emt 0:01:28]} 19. Na4 {[%emt 0:00:15]} Qb4 {[%emt 0:03:24]} 20. Nxb2 {[%emt 0:02:11]} Qxb2 {[%emt 0:00:04]} 21. e4 {[%emt 0:02:23]} Qxa1 {[%emt 0:02:40]} 22. exd5 {[%emt 0:00:04]} Qd4+ {[%emt 0:00:06]} 23. Kh1 {[%emt 0:00:42]} Qxd5 {[%emt 0:02:29]} 24. Rd1 {[%emt 0:03:39]} Qa5 {[%emt 0:02:17]} 25. Nc3 {[%emt 0:00:33]} e5 {[%emt 0:02:59]} 26. Bc4 {[%emt 0:02:24]} Bf5 {[%emt 0:01:53]} 27. Qf3 {[%emt 0:01:31]} Be6 {[%emt 0:04:55]} 28. Bxe6 {[%emt 0:00:43]} fxe6 {[%emt 0:00:02]} 29. Rf1 {[%emt 0:00:42]} Qc7 {[%emt 0:00:15]} 30. Ne4 {[%emt 0:00:21]} Nd4 {[%emt 0:02:20]} 31. Qa3 {[%emt 0:01:02]} Rc8 {[%emt 0:01:14]} 32. h4 {[%emt 0:01:14]} h6 {[%emt 0:00:19]} 33. Nd6 {[%emt 0:00:27]} Rd8 {[%emt 0:00:35]} 34. Nf7 {[%emt 0:00:08]} Rd7 {[%emt 0:00:38]} 35. Qa4 {[%emt 0:01:10]} b5 {[%emt 0:00:25]} 36. Qxa6 {[%emt 0:00:16]} Rxf7 {[%emt 0:00:05]} 37. Qa8+ {[%emt 0:00:02]} Kh7 {[%emt 0:00:16]} 38. Qe4+ {[%emt 0:00:05]} g6 {[%emt 0:00:41]} 39. Rxf7+ {[%emt 0:00:06]} Qxf7 {[%emt 0:00:03]} 40. Qxe5 {[%emt 0:00:00]} Qg7 {[%emt 0:00:56]} 0-1

[Event "RUS-chT Premier League Women 2018"]
[Site "Sochi"]
[Date "2018.05.03"]
[Round "3"]
[White "Smirnova, Ekaterina"]
[Black "Kryukova, Irina"]
[Result "1/2-1/2"]
[ECO "E53"]
[WhiteElo "2153"]
[BlackElo "2261"]
[Annotator "NA"]
[PlyCount "119"]
[EventDate "2018.??.??"]
[EventCountry "RUS"]
[SourceTitle "playchess.com"]
[Source "ChessBase"]
[SourceQuality "1"]
[TimeControl "40/5400+30:1800+30"]

1. d4 {[%emt 0:00:00]} Nf6 {[%emt 0:00:11]} 2. c4 {[%emt 0:00:00]} e6 {[%emt 0:00:06]} 3. Nc3 {[%emt 0:00:00]} Bb4 {[%emt 0:00:28]} 4. e3 {[%emt 0:00:00]} O-O {[%emt 0:00:51]} 5. Bd3 {[%emt 0:00:00]} d5 {[%emt 0:00:47]} 6. Nf3 {[%emt 0:00:15]} c5 {[%emt 0:00:43]} 7. cxd5 {[%emt 0:00:25]} exd5 {[%emt 0:00:25]} 8. dxc5 {[%emt 0:00:12]} Nbd7 {[%emt 0:01:00]} 9. Bd2 {[%emt 0:00:53]} Nxc5 {[%emt 0:06:03]} 10. Be2 {[%emt 0:00:02]} Ba5 {[%emt 0:09:46]} 11. O-O {[%emt 0:00:12]} Bb6 {[%emt 0:06:24]} 12. Nb5 {[%emt 0:10:28]} Nce4 {[%emt 0:02:23]} 13. Bb4 {[%emt 0:03:14]} Re8 {[%emt 0:00:19]} 14. Nbd4 {[%emt 0:02:14]} Bg4 {[%emt 0:04:59]} 15. Rc1 {[%emt 0:09:09]} Rc8 {[%emt 0:05:43]} 16. Rxc8 {[%emt 0:07:42]} Qxc8 {[%emt 0:00:56]} 17. Bb5 $11 {[%emt 0:12:44]} Bd7 {[%emt 0:02:02]} 18. Bxd7 {[%emt 0:00:15]} Qxd7 {[%emt 0:00:17]} 19. h3 {[%emt 0:04:15]} Rc8 {[%emt 0:02:34]} 20. Qd3 {[%emt 0:01:03]} h6 {[%emt 0:04:27]} 21. Rd1 {[%emt 0:01:32]} a6 {[%emt 0:03:27]} 22. a3 {[%emt 0:19:51]} Ba7 {[%emt 0:02:58]} 23. Ne2 {[%emt 0:01:34]} Qc7 {[%emt 0:17:11]} 24. Rc1 {[%emt 0:03:57]} Qd7 {[%emt 0:01:45]} 25. Rxc8+ {[%emt 0:00:10]} Qxc8 {[%emt 0:00:02]} 26. b3 {[%emt 0:06:43]} Qc6 {[%emt 0:04:30]} 27. Nfd4 {[%emt 0:04:03]} Qc7 {[%emt 0:01:43]} 28. Qc2 {[%emt 0:01:28]} Qd7 {[%emt 0:06:36]} 29. a4 {[%emt 0:03:44]} Bb8 {[%emt 0:02:54]} 30. Nf3 {[%emt 0:05:10]} Qc7 {[%emt 0:06:59]} 31. Qxc7 {[%emt 0:00:07]} Bxc7 {[%emt 0:00:02]} 32. Kf1 {[%emt 0:00:57]} Bd6 {[%emt 0:01:58]} 33. Bxd6 {[%emt 0:00:22]} Nxd6 {[%emt 0:00:01]} 34. Nfd4 {[%emt 0:01:06]} Kf8 {[%emt 0:00:23]} 35. f3 {[%emt 0:00:18]} Ke7 {[%emt 0:01:13]} 36. Nc3 {[%emt 0:00:10]} g6 {[%emt 0:01:52]} 37. Ke2 {[%emt 0:00:07]} Nde8 {[%emt 0:00:56]} 38. Kd3 {[%emt 0:00:12]} Nc7 {[%emt 0:01:13]} 39. g4 {[%emt 0:00:38]} Kd6 {[%emt 0:00:35]} 40. h4 {[%emt 0:00:00]} Ne6 {[%emt 0:01:58]} 41. b4 {[%emt 0:00:56]} Nd7 {[%emt 0:04:19]} 42. f4 {[%emt 0:06:51]} Nf6 {[%emt 0:02:35]} 43. g5 {[%emt 0:00:25]} hxg5 {[%emt 0:00:05]} 44. hxg5 {[%emt 0:00:01]} Nh5 {[%emt 0:00:40]} 45. Nxe6 {[%emt 0:03:57]} fxe6 {[%emt 0:01:21]} 46. Kd4 {[%emt 0:00:25]} b6 {[%emt 0:03:53]} 47. a5 {[%emt 0:00:37]} bxa5 {[%emt 0:02:42]} 48. bxa5 {[%emt 0:00:01]} Ng7 {[%emt 0:03:37]} 49. e4 {[%emt 0:00:17]} dxe4 {[%emt 0:10:51]} 50. Nxe4+ {[%emt 0:00:07]} Kc6 {[%emt 0:00:03]} 51. Ke5 {[%emt 0:07:07]} Nh5 {[%emt 0:00:18]} 52. Nf6 {[%emt 0:00:40]} Ng7 {[%emt 0:00:50]} 53. Ne4 {[%emt 0:04:46]} Nh5 {[%emt 0:00:43]} 54. Nc3 {[%emt 0:01:33]} Kc5 {[%emt 0:00:41]} 55. Ne2 {[%emt 0:00:40]} Kc4 {[%emt 0:02:34]} 56. Kxe6 {[%emt 0:07:23]} Kd3 {[%emt 0:00:16]} 57. Nc1+ {[%emt 0:00:12]} Kc2 {[%emt 0:00:54]} 58. Ne2 {[%emt 0:00:01]} Kd3 {[%emt 0:00:08]} 59. Nc1+ {[%emt 0:00:04]} Kc2 {[%emt 0:00:06]} 60. Ne2 {[%emt 0:00:03]} 1/2-1/2

[Event "RUS-chT Premier League Women 2018"]
[Site "Sochi"]
[Date "2018.05.03"]
[Round "3"]
[White "Bulatova, Kamaliya"]
[Black "Balaian, Alina"]
[Result "1-0"]
[ECO "A59"]
[WhiteElo "2037"]
[BlackElo "2228"]
[Annotator "NA"]
[PlyCount "89"]
[EventDate "2018.??.??"]
[EventCountry "RUS"]
[SourceTitle "playchess.com"]
[Source "ChessBase"]
[SourceQuality "1"]
[TimeControl "40/5400+30:1800+30"]

1. d4 {[%emt 0:00:00]} Nf6 {[%emt 0:00:05]} 2. c4 {[%emt 0:00:00]} c5 {[%emt 0:00:33]} 3. d5 {[%emt 0:00:00]} b5 {[%emt 0:00:21]} 4. cxb5 {[%emt 0:00:00]} a6 {[%emt 0:00:12]} 5. bxa6 {[%emt 0:00:00]} g6 {[%emt 0:00:16]} 6. Nc3 {[%emt 0:00:05]} Bxa6 {[%emt 0:00:09]} 7. e4 {[%emt 0:00:12]} Bxf1 {[%emt 0:00:16]} 8. Kxf1 {[%emt 0:00:05]} d6 {[%emt 0:00:15]} 9. g3 {[%emt 0:00:28]} Bg7 {[%emt 0:00:25] A59: Benko/Volga Gambit: White castles by hand} 10. Nf3 {[%emt 0:00:17]} Nbd7 {[%emt 0:00:33]} (10... O-O 11. Kg2 Na6 12. Qe2 Qb6 13. Rd1 Qb7 14. Rb1 Nd7 15. Bg5 Rfe8 16. a3 Nc7 17. Qc2 Nb6 18. a4 Rac8 19. b3 e6 20. dxe6 Nxe6 {1-0 (27) Jakovenko,D (2714)-Zvjaginsev,V (2673) Moscow 2016}) 11. a4 {[%emt 0:01:04]} O-O {[%emt 0:01:19]} 12. Kg2 {[%emt 0:00:08]} Qb6 {[%emt 0:02:20]} 13. Qe2 {[%emt 0:00:50]} Ne8 {[%emt 0:07:45]} 14. Bg5 {[%emt 0:03:39]} f6 {[%emt 0:02:35]} 15. Bd2 {[%emt 0:10:11]} Nc7 $11 {[%emt 0:00:26] keeps the balance.} 16. Rab1 $146 {[%emt 0:02:41]} ({Predecessor:} 16. h4 Rfb8 17. h5 Qa6 18. Qxa6 Rxa6 19. hxg6 hxg6 {1-0 (57) Toth,B (2347)-Karn,T (2131) Budapest 2017}) 16... Qb3 {[%emt 0:07:41] [#]} 17. Ra1 {[%emt 0:15:31]} (17. h4 $1 $16) 17... Rfb8 {[%emt 0:18:34]} 18. Rhb1 {[%emt 0:03:44]} Nb6 {[%emt 0:01:46]} 19. Ra3 $16 {[%emt 0:02:33]} Qc4 {[%emt 0:00:06]} 20. Qe3 {[%emt 0:00:51]} Qa6 {[%emt 0:28:18]} 21. b3 {[%emt 0:02:35]} Qb7 {[%emt 0:05:03]} 22. a5 {[%emt 0:11:00]} Nc8 {[%emt 0:02:22]} 23. Ra4 {[%emt 0:02:58]} Na6 {[%emt 0:01:07]} 24. h4 {[%emt 0:04:46]} Qd7 {[%emt 0:06:31]} 25. Ne1 {[%emt 0:04:44]} Rb7 {[%emt 0:08:02]} 26. Qe2 {[%emt 0:06:10]} Nb4 {[%emt 0:01:59]} 27. Na2 {[%emt 0:02:11]} Na6 {[%emt 0:00:02]} 28. Ra3 {[%emt 0:01:23]} e6 {[%emt 0:02:14]} 29. b4 {[%emt 0:05:02]} cxb4 {[%emt 0:01:14]} 30. Nxb4 {[%emt 0:00:23]} exd5 {[%emt 0:01:55]} 31. exd5 {[%emt 0:02:27]} Qf7 {[%emt 0:00:23]} 32. Nec2 {[%emt 0:01:55]} Ne7 {[%emt 0:00:42]} 33. Qf3 {[%emt 0:01:32]} Nc5 {[%emt 0:00:53]} 34. Re1 {[%emt 0:03:33]} Rba7 {[%emt 0:00:32]} 35. Nd4 {[%emt 0:02:22]} Rxa5 {[%emt 0:00:29]} 36. Rxa5 {[%emt 0:00:15]} Rxa5 {[%emt 0:00:02]} 37. Rxe7 {[%emt 0:00:42]} Qxe7 {[%emt 0:00:27]} 38. Nbc6 {[%emt 0:00:01]} Qe4 {[%emt 0:00:36]} 39. Bxa5 {[%emt 0:01:58]} f5 {[%emt 0:00:19]} 40. Qxe4 {[%emt 0:00:00]} Nxe4 {[%emt 0:00:09]} 41. Ne6 {[%emt 0:01:39]} Bb2 {[%emt 0:01:10]} 42. Bb4 {[%emt 0:01:54]} Nf6 {[%emt 0:01:52]} 43. Nc7 {[%emt 0:01:44]} Kf7 {[%emt 0:01:42]} 44. Bxd6 {[%emt 0:00:52]} Nxd5 {[%emt 0:00:45]} 45. Nd8+ {[%emt 0:00:21]} 1-0